bitfinex/quotes_BTCUSD_20250525
["timestamp","ask_amount","ask_price","bid_price","bid_amount"]
[1748169024256,0.00150297,106900.0,106890.0,0.98648603]
[1748169026908,0.00150297,106900.0,106890.0,1.32244603]
[1748169027430,0.00150297,106900.0,106890.0,1.31379356]
[1748169038210,0.00150297,106900.0,106890.0,1.32833441]
[1748169042232,0.00150297,106900.0,106890.0,1.17901441]
[1748169042442,0.00150297,106900.0,106890.0,1.32833441]
[1748169044504,0.00114768,106900.0,106890.0,1.32833441]
[1748169045714,0.00114768,106900.0,106890.0,1.01505441]
[1748169045926,0.00114768,106900.0,106890.0,1.27835356]
[1748169046151,0.00114768,106900.0,106890.0,1.28335356]
[1748169048857,0.00114768,106900.0,106890.0,0.97011356]
[1748169049034,0.00114768,106900.0,106890.0,1.28079356]
[1748169052621,0.00114768,106900.0,106890.0,1.28950481]
[1748169053333,0.00114768,106900.0,106890.0,1.28079356]
[1748169055091,0.00114768,106900.0,106890.0,1.29639356]
[1748169055310,0.00114768,106900.0,106890.0,1.31259356]
[1748169061166,0.00114768,106900.0,106890.0,1.14707356]
[1748169061341,0.00114768,106900.0,106890.0,1.28079356]
[1748169063814,0.00114768,106900.0,106890.0,1.29639356]
[1748169067511,0.00114768,106900.0,106890.0,1.28079356]
[1748169070912,0.00114768,106900.0,106890.0,1.13147356]
[1748169071141,0.00114768,106900.0,106890.0,1.28079356]
[1748169074884,0.01654768,106900.0,106890.0,1.28079356]
[1748169079912,0.01654768,106900.0,106890.0,1.25277956]
[1748169080114,0.01654768,106900.0,106890.0,0.94209956]
[1748169080343,0.01654768,106900.0,106890.0,1.25069956]
[1748169081331,0.01654768,106900.0,106890.0,0.94209956]
[1748169081575,0.03174768,106900.0,106890.0,1.25069956]
[1748169083017,0.01654768,106900.0,106890.0,1.25069956]
[1748169084573,0.03174768,106900.0,106890.0,1.127235]
[1748169084779,0.03174768,106900.0,106890.0,1.132235]
[1748169085408,0.03174768,106900.0,106890.0,0.982915]
[1748169085619,0.03174768,106900.0,106890.0,0.99163984]
[1748169085826,0.03174768,106900.0,106890.0,1.14095984]
[1748169086038,0.03174768,106900.0,106890.0,0.83235984]
[1748169086254,0.03174768,106900.0,106890.0,1.00528484]
[1748169087855,0.03174768,106900.0,106890.0,1.28768284]
[1748169089710,0.05174768,106900.0,106890.0,1.28768284]
[1748169091685,0.05174768,106900.0,106890.0,0.97908284]
[1748169091895,0.05174768,106900.0,106890.0,1.28772284]
[1748169094555,0.05174768,106900.0,106890.0,0.97908284]
[1748169094695,0.05174768,106900.0,106890.0,1.28772284]
[1748169095296,0.02114768,106900.0,106890.0,1.28772284]
[1748169095509,0.02114768,106900.0,106890.0,1.30362284]
[1748169095722,0.02114768,106900.0,106890.0,1.31912284]
[1748169095937,0.02114768,106900.0,106890.0,1.30362284]
[1748169096170,0.02114768,106900.0,106890.0,1.294898]
[1748169097203,0.02114768,106900.0,106890.0,1.38444356]
[1748169097432,0.02114768,106900.0,106890.0,1.39994356]
[1748169100091,0.02114768,106900.0,106890.0,1.41448441]
[1748169100092,0.00681768,106900.0,106890.0,1.41448441]
[1748169101064,0.00405909,106900.0,106890.0,1.42389115]
[1748169101482,0.0156,106920.0,106900.0,0.371]
[1748169101682,0.0156,106920.0,106910.0,0.49165771]
[1748169101917,0.0156,106920.0,106910.0,3.713019]
[1748169104832,0.0156,106920.0,106910.0,3.584567]
[1748169104991,0.0156,106920.0,106910.0,3.59849536]
[1748169105223,0.0156,106920.0,106910.0,3.60349536]
[1748169108349,0.0156,106920.0,106910.0,3.54720736]
[1748169110324,0.0156,106920.0,106910.0,3.23645436]
[1748169112131,0.0162,106930.0,106920.0,0.005]
[1748169112348,0.0307,106940.0,106930.0,0.005]
[1748169112567,0.13408095,106960.0,106950.0,0.005]
[1748169112840,0.05896711,106960.0,106950.0,1.508771]
[1748169113047,0.05896711,106960.0,106950.0,3.59808456]
[1748169113480,0.05896711,106960.0,106950.0,0.86096356]
[1748169113700,0.0329378,106960.0,106950.0,0.824263]
[1748169114337,0.0329378,106960.0,106950.0,0.516583]
[1748169114643,0.0339378,106960.0,106950.0,1.164223]
[1748169114877,0.0359378,106960.0,106950.0,1.164223]
[1748169115293,0.0329378,106960.0,106950.0,1.164223]
[1748169115539,0.0485378,106960.0,106950.0,1.164223]
[1748169117789,0.0329378,106960.0,106950.0,1.164223]
[1748169118135,0.0329378,106960.0,106950.0,1.25376856]
[1748169118342,0.0329378,106960.0,106950.0,1.26906856]
[1748169118543,0.0329378,106960.0,106950.0,1.25376856]
[1748169118751,0.0156,106970.0,106950.0,1.25376856]
[1748169118960,0.0307,106970.0,106960.0,0.128643]
[1748169119722,0.0307,106970.0,106960.0,0.15428]
[1748169120137,0.0307,106970.0,106960.0,0.31264]
[1748169121413,0.0317,106970.0,106960.0,0.31264]
[1748169121610,0.0317,106970.0,106960.0,0.65264]
[1748169121843,0.0337,106970.0,106960.0,0.65264]
[1748169125640,0.0337,106970.0,106960.0,0.66209865]
[1748169127592,0.0337,106970.0,106960.0,0.35445865]
[1748169127781,0.12324556,106970.0,106960.0,0.66201865]
[1748169128724,0.12324556,106970.0,106960.0,0.35445865]
[1748169128941,0.12324556,106970.0,106960.0,0.65701865]
[1748169129146,0.12324556,106970.0,106960.0,0.34945865]
[1748169129364,0.12324556,106970.0,106960.0,0.65701865]
[1748169129775,0.12324556,106970.0,106960.0,0.31701865]
[1748169132234,0.12324556,106970.0,106960.0,0.00945865]
[1748169132417,0.12324556,106970.0,106960.0,0.31701865]
[1748169132619,0.12324556,106970.0,106960.0,0.64756]
[1748169134317,0.12324556,106970.0,106960.0,0.65687457]
[1748169136426,0.13215706,106970.0,106960.0,0.65687457]
[1748169138318,0.13215706,106970.0,106960.0,0.34]
[1748169138542,0.13215706,106970.0,106960.0,0.64756]
[1748169140188,0.13215706,106970.0,106960.0,0.34]
[1748169140409,0.13215706,106970.0,106960.0,0.64756]
[1748169140620,0.13215706,106970.0,106960.0,0.34]
[1748169141012,0.13215706,106970.0,106960.0,0.64756]
[1748169141899,0.13215706,106970.0,106960.0,0.65682303]
[1748169143942,0.11705706,106970.0,106960.0,0.65682303]
[1748169145401,0.10145706,106970.0,106960.0,0.65682303]
[1748169146256,0.10145706,106970.0,106960.0,0.66182303]
[1748169146469,0.0119115,106970.0,106960.0,0.69342303]
[1748169146899,0.003,106970.0,106960.0,0.69342303]
[1748169152119,0.003,106970.0,106960.0,1.02922303]
[1748169152415,0.003,106970.0,106960.0,1.87400903]
[1748169152616,0.003,106970.0,106960.0,1.76581903]
[1748169153914,0.003,106970.0,106960.0,1.73514303]
[1748169154216,0.003,106970.0,106960.0,1.38549803]
[1748169155052,0.003,106970.0,106960.0,1.37246303]
[1748169155257,0.003,106970.0,106960.0,1.15417803]
[1748169159905,0.003,106970.0,106960.0,1.144915]
[1748169171868,0.003,106970.0,106960.0,1.23446056]
[1748169172515,0.003,106970.0,106960.0,1.24900141]
[1748169172739,0.002,106970.0,106960.0,1.24900141]
[1748169172937,0.002,106970.0,106960.0,1.25000141]
[1748169173151,0.0329378,107000.0,106990.0,0.0366]
[1748169173353,0.03307904,107000.0,106990.0,2.782739]
[1748169173509,0.03307904,107000.0,106990.0,2.383718]
[1748169174086,0.03307904,107000.0,106990.0,2.349696]
[1748169175010,0.03307904,107000.0,106990.0,2.187149]
[1748169175212,0.03407904,107000.0,106990.0,2.187149]
[1748169176383,0.03607904,107000.0,106990.0,2.187149]
[1748169176593,0.00314124,107000.0,106990.0,2.187149]
[1748169176887,0.00314124,107000.0,106990.0,2.098169]
[1748169177094,0.00314124,107000.0,106990.0,2.1124473]
[1748169177411,0.00314124,107000.0,106990.0,1.9436303]
[1748169177571,0.00314124,107000.0,106990.0,1.0219373]
[1748169178241,0.00314124,107000.0,106990.0,1.0065373]
[1748169178634,0.00314124,107000.0,106990.0,1.0216373]
[1748169179776,0.00314124,107000.0,106990.0,1.0215573]
[1748169181189,0.00314124,107000.0,106990.0,0.7141173]
[1748169181370,0.00314124,107000.0,106990.0,0.9929763]
[1748169181615,0.00314124,107000.0,106990.0,0.9582363]
[1748169181834,0.01934124,107000.0,106990.0,0.3592783]
[1748169182039,0.03474124,107000.0,106990.0,0.3217183]
[1748169182461,0.03474124,107000.0,106990.0,0.3267183]
[1748169183456,0.03474124,107000.0,106990.0,0.6667183]
[1748169183998,0.01934124,107000.0,106990.0,0.6667183]
[1748169184384,0.01934124,107000.0,106990.0,1.0975303]
[1748169184385,0.00314124,107000.0,106990.0,1.0975303]
[1748169185053,0.01934124,107000.0,106990.0,1.0975303]
[1748169185426,0.00314124,107000.0,106990.0,1.1126303]
[1748169185771,0.00314124,107000.0,106990.0,1.0975303]
[1748169188895,0.01934124,107000.0,106990.0,1.0975303]
[1748169189288,0.00314124,107000.0,106990.0,1.0975303]
[1748169193931,0.00314124,107000.0,106990.0,0.7995283]
[1748169196420,0.01934124,107000.0,106990.0,0.7707973]
[1748169197451,0.01934124,107000.0,106990.0,1.1064773]
[1748169198180,0.00314124,107000.0,106990.0,1.1064773]
[1748169198635,0.01934124,107000.0,106990.0,1.1064773]
[1748169198833,0.01934124,107000.0,106990.0,0.8531983]
[1748169199047,0.01934124,107000.0,106990.0,1.0023983]
[1748169201104,0.01934124,107000.0,106990.0,0.8531983]
[1748169201243,0.01934124,107000.0,106990.0,1.0023983]
[1748169202533,0.0282803,107000.0,106990.0,1.0023983]
[1748169204314,0.0445803,107000.0,106990.0,0.67568]
[1748169204523,0.13412586,107000.0,106990.0,0.98328]
[1748169204733,0.13412586,107000.0,106990.0,0.98828]
[1748169210181,0.11782586,107000.0,106990.0,0.98828]
[1748169211034,0.10162586,107000.0,106990.0,0.98828]
[1748169212062,0.10162586,107000.0,106990.0,1.00348]
[1748169212459,0.10162586,107000.0,106990.0,0.98828]
[1748169214415,0.11662586,107000.0,106990.0,0.98828]
[1748169216029,0.10162586,107000.0,106990.0,1.00478]
[1748169216948,0.10162586,107000.0,106990.0,0.98828]
[1748169221000,0.10162586,107000.0,106990.0,0.68068]
[1748169221194,0.11752586,107000.0,106990.0,0.98828]
[1748169226565,0.0120803,107000.0,106990.0,1.00438]
[1748169226714,0.0120803,107000.0,106990.0,1.02038]
[1748169227616,0.0120803,107000.0,106990.0,1.886854]
[1748169229373,0.0120803,107000.0,106990.0,1.846167]
[1748169229598,0.0120803,107000.0,106990.0,1.834511]
[1748169235101,0.0120803,107000.0,106990.0,1.92405656]
[1748169235915,0.00314124,107000.0,106990.0,1.92405656]
[1748169253393,0.00314124,107000.0,106990.0,1.77485656]
[1748169253620,0.00314124,107000.0,106990.0,1.92401656]
[1748169268735,0.00314124,107000.0,106990.0,1.61645656]
[1748169268934,0.00314124,107000.0,106990.0,1.92373656]
[1748169269538,0.03489596,107030.0,107020.0,0.005]
[1748169269737,0.03539977,107030.0,107020.0,0.31228]
[1748169270161,0.03319119,107030.0,107020.0,0.31228]
[1748169271025,0.03319119,107030.0,107020.0,0.65228]
[1748169271405,0.03819119,107030.0,107020.0,0.65228]
[1748169271606,0.04319119,107030.0,107020.0,0.65228]
[1748169274097,0.04319119,107030.0,107020.0,0.98788]
[1748169278455,0.05795119,107030.0,107020.0,0.98788]
[1748169282921,0.04940995,107030.0,107020.0,0.98788]
[1748169283469,0.04940995,107030.0,107020.0,0.6806]
[1748169283677,0.04940995,107030.0,107020.0,0.98788]
[1748169290903,0.03420995,107030.0,107020.0,1.00308]
[1748169291439,0.05080995,107030.0,107020.0,0.98788]
[1748169292621,0.04186381,107030.0,107020.0,0.98788]
[1748169296785,0.04186381,107030.0,107020.0,0.6806]
[1748169297003,0.05726381,107030.0,107020.0,0.98772]
[1748169297181,0.04186381,107030.0,107020.0,0.98772]
[1748169299309,0.04186381,107030.0,107020.0,0.6806]
[1748169299468,0.04186381,107030.0,107020.0,0.98772]
[1748169300204,0.04186381,107030.0,107020.0,0.6806]
[1748169300436,0.04186381,107030.0,107020.0,0.98772]
[1748169301354,0.04186381,107030.0,107020.0,0.83856]
[1748169301567,0.04186381,107030.0,107020.0,0.98772]
[1748169301772,0.14750937,107030.0,107020.0,0.98272]
[1748169301978,0.14750937,107030.0,107020.0,0.98772]
[1748169302404,0.15644941,107030.0,107020.0,0.98772]
[1748169302839,0.15644941,107030.0,107020.0,0.98272]
[1748169308823,0.15644941,107030.0,107020.0,0.6756]
[1748169308982,0.15644941,107030.0,107020.0,0.98272]
[1748169310175,0.15644941,107030.0,107020.0,0.6756]
[1748169310420,0.15644941,107030.0,107020.0,0.98276]
[1748169313161,0.15644941,107030.0,107020.0,0.6756]
[1748169313295,0.15644941,107030.0,107020.0,0.98276]
[1748169314397,0.15644941,107030.0,107020.0,0.6756]
[1748169314626,0.17099026,107030.0,107020.0,0.64276]
[1748169315047,0.17099026,107030.0,107020.0,0.98276]
[1748169315654,0.18214498,107030.0,107020.0,0.98276]
[1748169318427,0.18214498,107030.0,107020.0,0.6756]
[1748169318636,0.18214498,107030.0,107020.0,0.98276]
[1748169318979,0.24664623,107030.0,107020.0,0.98276]
[1748169323310,0.24664623,107030.0,107020.0,0.34]
[1748169323514,0.24664623,107030.0,107020.0,0.64704]
[1748169324300,0.18214498,107030.0,107020.0,0.64704]
[1748169337772,0.18214498,107030.0,107020.0,0.49788]
[1748169338092,0.18214498,107030.0,107020.0,0.64704]
[1748169338945,0.18214498,107030.0,107020.0,0.49788]
[1748169339193,0.18214498,107030.0,107020.0,0.64704]
[1748169340242,0.18214498,107030.0,107020.0,0.15788]
[1748169340503,0.18214498,107030.0,107020.0,0.30704]
[1748169341856,0.19702348,107030.0,107020.0,0.30704]
[1748169343719,0.26149762,107030.0,107020.0,0.30704]
[1748169344688,0.2503429,107030.0,107020.0,0.30704]
[1748169346152,0.2342429,107030.0,107020.0,0.30704]
[1748169347758,0.2342429,107030.0,107020.0,0.30708]
[1748169348032,0.2502429,107030.0,107020.0,0.30708]
[1748169352039,0.2342429,107030.0,107020.0,0.30708]
[1748169357218,0.2342429,107030.0,107010.0,0.3557]
[1748169357449,0.14469734,107030.0,107020.0,0.30696]
[1748169357637,0.2342429,107030.0,107020.0,0.30696]
[1748169358983,0.2342429,107030.0,107020.0,0.15776]
[1748169359159,0.2342429,107030.0,107020.0,0.30696]
[1748169359338,0.2292429,107030.0,107020.0,0.30696]
[1748169359537,0.2332429,107030.0,107020.0,0.30696]
[1748169359971,0.2292429,107030.0,107020.0,0.30696]
[1748169360366,0.2342429,107030.0,107020.0,0.30696]
[1748169364246,0.2176429,107030.0,107020.0,0.30696]
[1748169364628,0.2176429,107030.0,107020.0,0.32306]
[1748169365123,0.1847051,107030.0,107020.0,0.32306]
[1748169375643,0.1847051,107030.0,107020.0,0.0161]
[1748169375847,0.1847051,107030.0,107020.0,0.32306]
[1748169379015,0.1699451,107030.0,107020.0,0.32306]
[1748169379431,0.1699451,107030.0,107020.0,0.17386]
[1748169379675,0.1699451,107030.0,107020.0,0.32306]
[1748169379982,0.1856451,107030.0,107020.0,0.30696]
[1748169381137,0.1699451,107030.0,107020.0,0.30696]
[1748169381540,0.1699451,107030.0,107020.0,0.32296]
[1748169381751,0.1699451,107030.0,107020.0,0.33796]
[1748169382787,0.1699451,107030.0,107020.0,0.32296]
[1748169391414,0.15540425,107030.0,107020.0,0.33866]
[1748169399674,0.15540425,107030.0,107020.0,0.0367]
[1748169399877,0.06585869,107030.0,107020.0,0.34583577]
[1748169400085,0.07704333,107030.0,107020.0,0.3435]
[1748169401146,0.05098019,107030.0,107020.0,0.3435]
[1748169401854,0.05098019,107030.0,107020.0,0.6835]
[1748169403773,0.04204015,107030.0,107020.0,0.6835]
[1748169404658,0.01050381,107030.0,107020.0,0.6835]
[1748169417536,0.01050381,107030.0,107020.0,0.68346]
[1748169417735,0.01050381,107030.0,107020.0,0.5343]
[1748169417951,0.01050381,107030.0,107020.0,0.68346]
[1748169418131,0.01050381,107030.0,107020.0,0.66756]
[1748169418837,0.01050381,107030.0,107020.0,0.361]
[1748169419045,0.01050381,107030.0,107020.0,0.66756]
[1748169419477,0.01050381,107030.0,107010.0,0.35084]
[1748169419478,0.13084937,107030.0,107010.0,0.35084]
[1748169419679,0.08954556,107020.0,107010.0,0.33564]
[1748169420091,0.08954556,107020.0,107010.0,0.6422]
[1748169420511,0.09847174,107020.0,107010.0,0.6777]
[1748169420833,0.01292618,107020.0,107010.0,1.0177]
[1748169421486,0.004,107020.0,107010.0,1.0177]
[1748169422225,0.008,107020.0,107010.0,1.0177]
[1748169422514,0.008,107020.0,107010.0,0.71114]
[1748169422730,0.008,107020.0,107010.0,1.0177]
[1748169426586,0.01693127,107020.0,107010.0,1.0177]
[1748169427550,0.01693127,107020.0,107010.0,1.780219]
[1748169428211,0.01693127,107020.0,107010.0,1.646829]
[1748169429278,0.01693127,107020.0,107010.0,1.0127]
[1748169429279,0.008,107020.0,107010.0,1.0127]
[1748169429498,0.008,107020.0,107010.0,1.126114]
[1748169431334,0.008,107020.0,107010.0,1.0024]
[1748169432080,0.008,107020.0,107010.0,0.69584]
[1748169432216,0.008,107020.0,107010.0,1.0024]
[1748169433323,0.008,107020.0,107010.0,1.0177]
[1748169433476,0.008,107020.0,107010.0,0.69584]
[1748169433820,0.008,107020.0,107010.0,1.0024]
[1748169434540,0.09754556,107020.0,107010.0,0.68064]
[1748169434757,0.11364556,107020.0,107010.0,0.9872]
[1748169435262,0.12258129,107020.0,107010.0,0.9872]
[1748169443176,0.12258129,107020.0,107010.0,0.68064]
[1748169443423,0.12258129,107020.0,107010.0,0.9872]
[1748169443947,0.12258129,107020.0,107010.0,0.67564]
[1748169444210,0.12258129,107020.0,107010.0,0.9822]
[1748169445332,0.10648129,107020.0,107010.0,0.9822]
[1748169445596,0.10648129,107020.0,107010.0,0.9976]
[1748169455015,0.01693573,107020.0,107010.0,1.0026]
[1748169455228,0.01693573,107020.0,107010.0,1.0184]
[1748169472893,0.01693573,107020.0,107010.0,1.0026]
[1748169475104,0.03243573,107020.0,107010.0,0.9872]
[1748169475436,0.03243573,107020.0,107010.0,0.68064]
[1748169475648,0.03243573,107020.0,107010.0,0.98708]
[1748169480687,0.01693573,107020.0,107010.0,0.98708]
[1748169480999,0.03243573,107020.0,107010.0,0.98708]
[1748169482788,0.03243573,107020.0,107010.0,0.98696]
[1748169484213,0.13768129,107020.0,107010.0,0.98196]
[1748169484461,0.13768129,107020.0,107010.0,0.67564]
[1748169484677,0.13788129,107020.0,107010.0,0.98196]
[1748169485305,0.12198129,107020.0,107010.0,0.98196]
[1748169485611,0.12198129,107020.0,107010.0,0.67564]
[1748169485834,0.13316593,107020.0,107010.0,0.98196]
[1748169488312,0.19775094,107020.0,107010.0,0.98196]
[1748169493702,0.19775094,107020.0,107010.0,0.64632]
[1748169493909,0.13316593,107020.0,107010.0,0.64632]
[1748169494635,0.14896593,107020.0,107010.0,0.64632]
[1748169495051,0.13316593,107020.0,107010.0,0.34]
[1748169495256,0.14896593,107020.0,107010.0,0.34]
[1748169495667,0.14896593,107020.0,107010.0,0.64632]
[1748169497317,0.16350678,107020.0,107010.0,0.49716]
[1748169497479,0.16350678,107020.0,107010.0,0.64636]
[1748169498938,0.2122772,107020.0,107010.0,0.64636]
[1748169503422,0.19773635,107020.0,107010.0,0.64636]
[1748169503633,0.18223635,107020.0,107010.0,0.67826]
[1748169503839,0.18223635,107020.0,107010.0,0.68326]
[1748169504258,0.08150615,107020.0,107010.0,0.68326]
[1748169505537,0.01693573,107020.0,107010.0,0.68326]
[1748169506588,0.008,107020.0,107010.0,0.68326]
[1748169519434,0.008,107020.0,107010.0,0.53406]
[1748169519640,0.008,107020.0,107010.0,0.68322]
[1748169520722,0.008,107020.0,107010.0,0.66792]
[1748169521555,0.008,107020.0,107010.0,0.68372]
[1748169524858,0.008,107020.0,107010.0,1.01932]
[1748169525472,0.008,107020.0,107010.0,1.00336]
[1748169526090,0.008,107020.0,107010.0,1.01856]
[1748169531803,0.008,107020.0,107010.0,0.8694]
[1748169532002,0.008,107020.0,107010.0,1.00336]
[1748169533216,0.01694114,107020.0,107010.0,1.00336]
[1748169539348,0.01694114,107020.0,107010.0,0.6972]
[1748169539551,0.03224114,107020.0,107010.0,0.98672]
[1748169540979,0.1377867,107020.0,107010.0,0.3356]
[1748169541195,0.15232755,107020.0,107010.0,0.3356]
[1748169541417,0.15232755,107020.0,107010.0,0.64156]
[1748169542249,0.16720605,107020.0,107010.0,0.64156]
[1748169543284,0.17837719,107020.0,107010.0,0.64156]
[1748169544346,0.24291306,107020.0,107010.0,0.64156]
[1748169544548,0.22803456,107020.0,107010.0,0.64156]
[1748169545190,0.22803456,107020.0,107010.0,0.3356]
[1748169545392,0.22803456,107020.0,107010.0,0.64156]
[1748169547202,0.24291306,107020.0,107010.0,0.64156]
[1748169548038,0.22803456,107020.0,107010.0,0.64156]
[1748169548578,0.22803456,107020.0,107010.0,0.64164]
[1748169548996,0.21349371,107020.0,107010.0,0.64164]
[1748169549211,0.19749371,107020.0,107010.0,0.64164]
[1748169552315,0.18219371,107020.0,107010.0,0.64164]
[1748169552518,0.11765784,107020.0,107010.0,0.66304]
[1748169553101,0.1064867,107020.0,107010.0,0.66304]
[1748169553831,0.1064867,107020.0,107010.0,0.67844]
[1748169554417,0.1064867,107020.0,107010.0,0.66304]
[1748169557396,0.1064867,107020.0,107010.0,0.64664]
[1748169560021,0.1064867,107020.0,107010.0,0.66274]
[1748169563791,0.1064867,107020.0,107010.0,0.67884]
[1748169566149,0.1064867,107020.0,107010.0,1.01884]
[1748169567677,0.01694114,107020.0,107010.0,1.01884]
[1748169574745,0.008,107020.0,107010.0,1.01884]
[1748169578286,0.01693124,107020.0,107010.0,1.01884]
[1748169583826,0.01693124,107020.0,107010.0,1.32225]
[1748169584255,0.01693124,107020.0,107010.0,1.25581]
[1748169584454,0.008,107020.0,107010.0,1.18225]
[1748169588628,0.008,107020.0,107010.0,1.16575]
[1748169591774,0.01693761,107020.0,107010.0,1.16575]
[1748169601206,0.01693761,107020.0,107010.0,1.129731]
[1748169601848,0.01693761,107020.0,107010.0,0.964431]
[1748169602050,0.01693761,107020.0,107010.0,1.0027]
[1748169603730,0.01693761,107020.0,107010.0,1.113591]
[1748169604140,0.01693761,107020.0,107010.0,1.129591]
[1748169609494,0.01693761,107020.0,107010.0,1.113591]
[1748169614732,0.01693761,107020.0,107010.0,1.0027]
[1748169619188,0.6953,107050.0,107020.0,0.005]
[1748169619343,0.08954556,107040.0,107030.0,0.30564]
[1748169620403,0.09654556,107040.0,107030.0,0.30664]
[1748169621328,0.10154556,107040.0,107030.0,0.66694]
[1748169621533,0.012,107040.0,107030.0,0.68354]
[1748169624017,0.012,107040.0,107030.0,0.53438]
[1748169624221,0.012,107040.0,107030.0,0.70093903]
[1748169624642,0.012,107040.0,107030.0,1.38412503]
[1748169624845,0.005,107040.0,107030.0,1.07348503]
[1748169625047,0.005,107040.0,107030.0,0.69993903]
[1748169625249,0.15621469,107090.0,107040.0,0.005]
[1748169625250,0.0151,107050.0,107040.0,0.005]
[1748169625452,0.11994556,107050.0,107040.0,0.005]
[1748169625866,0.11994556,107050.0,107040.0,0.31064]
[1748169626086,0.10464556,107050.0,107040.0,0.32803903]
[1748169626860,0.10864556,107050.0,107040.0,0.32803903]
[1748169627706,0.11264556,107050.0,107040.0,0.32803903]
[1748169629145,0.11264556,107050.0,107040.0,0.34203758]
[1748169630953,0.11264556,107050.0,107040.0,0.19287758]
[1748169631156,0.11264556,107050.0,107040.0,0.34199758]
[1748169631808,0.12156811,107050.0,107040.0,0.34199758]
[1748169634153,0.12156811,107050.0,107040.0,0.19267758]
[1748169634362,0.12156811,107050.0,107040.0,0.34183758]
[1748169637581,0.12156811,107050.0,107040.0,0.19267758]
[1748169637782,0.13736811,107050.0,107040.0,0.33683758]
[1748169637960,0.13736811,107050.0,107040.0,0.18767758]
[1748169638174,0.13736811,107050.0,107040.0,0.67683758]
[1748169639186,0.12156811,107050.0,107040.0,0.67683758]
[1748169641305,0.12156811,107050.0,107040.0,0.37139758]
[1748169641442,0.12156811,107050.0,107040.0,0.67683758]
[1748169645144,0.12156811,107050.0,107040.0,0.68619498]
[1748169646577,0.10646811,107050.0,107040.0,0.68619498]
[1748169646719,0.10646811,107050.0,107040.0,0.70279498]
[1748169647358,0.11518907,107050.0,107040.0,0.70279498]
[1748169650093,0.11518907,107050.0,107040.0,0.71849498]
[1748169651369,0.11518907,107050.0,107040.0,0.72349498]
[1748169654146,0.11518907,107050.0,107040.0,1.05905498]
[1748169656363,0.10646811,107050.0,107040.0,1.05905498]
[1748169657999,0.01692255,107050.0,107040.0,1.05905498]
[1748169663220,0.01692255,107050.0,107040.0,0.90989498]
[1748169663400,0.01692255,107050.0,107040.0,1.05905498]
[1748169676602,0.01692255,107050.0,107040.0,2.89984998]
[1748169676792,0.01692255,107050.0,107040.0,3.00563598]
[1748169677159,0.01692255,107050.0,107040.0,2.88011798]
[1748169678523,0.008,107050.0,107040.0,2.88011798]
[1748169678745,0.008,107050.0,107040.0,2.96966354]
[1748169678951,0.008,107050.0,107040.0,2.98420439]
[1748169679658,0.004,107050.0,107040.0,2.98420439]
[1748169679872,0.01489131,107080.0,107050.0,0.0313]
[1748169680076,0.05698361,107090.0,107080.0,0.005]
[1748169680228,0.14652917,107090.0,107080.0,0.32654]
[1748169680430,0.16272917,107090.0,107080.0,0.005]
[1748169680636,0.17832917,107090.0,107080.0,0.32763903]
[1748169680884,0.17832917,107090.0,107080.0,0.31024]
[1748169681064,0.19224442,107090.0,107080.0,0.31065336]
[1748169681246,0.17664442,107090.0,107080.0,0.31065336]
[1748169681444,0.19224442,107090.0,107080.0,0.31065336]
[1748169681852,0.17664442,107090.0,107080.0,0.31065336]
[1748169682152,0.18164442,107090.0,107080.0,0.32018891]
[1748169682730,0.18764442,107090.0,107080.0,0.32018891]
[1748169683217,0.14561212,107090.0,107080.0,0.32018891]
[1748169684737,0.13445212,107090.0,107080.0,0.32018891]
[1748169685684,0.11825212,107090.0,107080.0,0.32018891]
[1748169685867,0.11825212,107090.0,107080.0,0.35188891]
[1748169686441,0.10953356,107090.0,107080.0,0.36922827]
[1748169687679,0.10953356,107090.0,107080.0,0.70922827]
[1748169691273,0.10953356,107090.0,107080.0,0.56010827]
[1748169691446,0.10953356,107090.0,107080.0,0.69272827]
[1748169692242,0.10060556,107090.0,107080.0,0.69272827]
[1748169692909,0.10060556,107090.0,107080.0,0.38748827]
[1748169693116,0.10060556,107090.0,107080.0,0.69268827]
[1748169694415,0.13350556,107090.0,107080.0,0.00041336]
[1748169694672,0.14241218,107090.0,107080.0,0.30545336]
[1748169694896,0.14241218,107090.0,107080.0,0.00041336]
[1748169695141,0.15695303,107090.0,107080.0,0.00041336]
[1748169695367,0.15695303,107090.0,107080.0,0.15637336]
[1748169695602,0.19609103,107090.0,107080.0,0.15637336]
[1748169700381,0.19609103,107090.0,107080.0,0.00041336]
[1748169700590,0.19609103,107090.0,107080.0,0.15637336]
[1748169701227,0.19982234,107090.0,107080.0,0.15637336]
[1748169702941,0.05614,107100.0,107090.0,0.93843875]
[1748169703136,0.17366356,107100.0,107090.0,0.93843875]
[1748169704300,0.17866356,107100.0,107090.0,0.93843875]
[1748169704931,0.19820441,107100.0,107090.0,0.93843875]
[1748169705872,0.21480441,107100.0,107090.0,0.93843875]
[1748169706058,0.2462804,107100.0,107090.0,0.93843875]
[1748169713475,0.2400804,107100.0,107090.0,0.93843875]
[1748169713684,0.16013955,107100.0,107090.0,0.95343875]
[1748169714124,0.13216155,107100.0,107090.0,0.95343875]
[1748169714972,0.14087146,107100.0,107090.0,0.95343875]
[1748169715328,0.14978938,107100.0,107090.0,0.95343875]
[1748169716057,0.14978938,107100.0,107090.0,0.96913875]
[1748169716268,0.14978938,107100.0,107090.0,0.9472925]
[1748169716465,0.14978938,107100.0,107090.0,0.9315925]
[1748169716667,0.14978938,107100.0,107090.0,0.9472925]
[1748169717538,0.14978938,107100.0,107090.0,0.9315925]
[1748169721272,0.14978938,107100.0,107090.0,0.9467925]
[1748169725937,0.14706757,107100.0,107090.0,0.9467925]
[1748169726897,0.14706757,107100.0,107090.0,1.0959125]
[1748169727535,0.14706757,107100.0,107090.0,1.45327185]
[1748169728374,0.15822806,107100.0,107090.0,1.45327185]
[1748169729510,0.15822806,107100.0,107090.0,1.11327185]
[1748169729718,0.15822806,107100.0,107090.0,1.26911185]
[1748169729900,0.15822806,107100.0,107090.0,1.0874325]
[1748169730523,0.14706757,107100.0,107090.0,1.0874325]
[1748169730735,0.11559158,107100.0,107090.0,1.0874325]
[1748169730944,0.11559158,107100.0,107090.0,1.1039325]
[1748169733489,0.13046527,107100.0,107090.0,1.1039325]
[1748169735691,0.14162082,107100.0,107090.0,1.0874325]
[1748169736324,0.16197344,107100.0,107090.0,1.0874325]
[1748169738512,0.17817344,107100.0,107090.0,1.0724325]
[1748169738730,0.19271429,107100.0,107090.0,1.0724325]
[1748169739113,0.17651429,107100.0,107090.0,1.0724325]